[Event "European Womens-ch 2025"]
[Site "Rhodes"]
[Date "2025.04.03"]
[Round "4.9"]
[White "Urh, Zala"]
[Black "Bulmaga, Irina"]
[Result "1/2-1/2"]
[Annotator "RC"]
[ECO "E43"]
[WhiteElo "2244"]
[BlackElo "2362"]
[PlyCount "93"]
[EventDate "2025.03.29"]
[EventType "swiss"]
[EventCountry "GRE"]
[SourceTitle "playchess.com"]
[Source "ChessBase"]
[SourceQuality "1"]
[TimeControl "40/5400+30:1800+30"]

1. d4 {[%emt 0:00:01]} Nf6 {[%emt 0:00:16]} 2. c4 {[%emt 0:00:08]} e6 {[%emt 0:00:17]} 3. Nc3 {[%emt 0:00:05]} Bb4 {[%emt 0:00:07]} 4. Nf3 {[%emt 0:00:09]} b6 {[%emt 0:00:31]} 5. e3 {[%emt 0:00:55]} Bb7 {[%emt 0:00:14]} 6. Bd3 {[%emt 0:00:35]} O-O {[%emt 0:06:44]} 7. O-O {[%emt 0:00:54]} c5 {[%emt 0:04:24]} 8. Na4 {[%emt 0:02:08]} cxd4 {[%emt 0:03:19]} 9. exd4 {[%emt 0:00:16]} Be7 {[%emt 0:01:12]} 10. Bf4 {[%emt 0:13:43]} d6 {[%emt 0:08:38]} 11. Re1 {[%emt 0:05:41]} Nbd7 {[%emt 0:00:50]} 12. b4 {[%emt 0:14:02]} Re8 {[%emt 0:24:04]} 13. a3 {[%emt 0:04:53]} Bf8 {[%emt 0:02:50]} 14. Nc3 {[%emt 0:05:53]} g6 {[%emt 0:00:32]} 15. Rc1 {[%emt 0:05:59]} a6 {[%emt 0:07:46]} 16. h3 {[%emt 0:04:50]} Rc8 {[%emt 0:01:02]} 17. Bf1 {[%emt 0:09:04]} h6 {[%emt 0:03:43]} 18. Bh2 {[%emt 0:03:00]} Rc7 {[%emt 0:03:05]} 19. c5 {[%emt 0:10:45]} Rc8 {[%emt 0:00:43]} 20. cxd6 {[%emt 0:03:10]} Nb8 {[%emt 0:00:03]} 21. Ne5 {[%emt 0:07:20]} Bxd6 {[%emt 0:00:23]} 22. Qd3 {[%emt 0:00:05]} Kg7 {[%emt 0:09:25]} 23. Bf4 {[%emt 0:00:07]} g5 {[%emt 0:03:42]} 24. Bd2 {[%emt 0:02:28]} Nh5 {[%emt 0:12:04]} 25. Qe2 {[%emt 0:03:54]} Nf4 {[%emt 0:00:39]} 26. Bxf4 {[%emt 0:01:00]} gxf4 {[%emt 0:00:02]} 27. Ne4 {[%emt 0:00:31]} Bxe4 {[%emt 0:03:29]} 28. Qxe4 {[%emt 0:00:04]} Bxe5 {[%emt 0:01:54]} 29. dxe5 {[%emt 0:00:04]} Qg5 {[%emt 0:01:14]} 30. Bd3 {[%emt 0:00:29]} Rxc1 {[%emt 0:00:45]} 31. Rxc1 {[%emt 0:00:15]} Nd7 {[%emt 0:01:01]} 32. Re1 {[%emt 0:03:18]} Nf8 {[%emt 0:00:02]} 33. Bxa6 {[%emt 0:00:34]} Ng6 {[%emt 0:00:01]} 34. Qe2 {[%emt 0:00:26]} Rd8 {[%emt 0:01:18]} 35. Bb7 {[%emt 0:00:25]} h5 {[%emt 0:00:32]} 36. a4 {[%emt 0:00:33]} f3 {[%emt 0:00:53]} 37. Qxf3 {[%emt 0:00:29]} Qd2 {[%emt 0:00:39]} 38. Qf6+ {[%emt 0:00:32]} Kg8 {[%emt 0:00:01]} 39. Re4 {[%emt 0:00:38]} Qc1+ {[%emt 0:00:50]} 40. Kh2 {[%emt 0:00:00]} Rd1 {[%emt 0:00:00]} 41. h4 {[%emt 0:07:56]} Rh1+ {[%emt 0:09:20]} 42. Kg3 {[%emt 0:00:34]} Qc7 {[%emt 0:01:10]} 43. Ba6 {[%emt 0:06:24]} Ne7 {[%emt 0:01:10]} 44. Qg5+ {[%emt 0:11:34]} Kf8 {[%emt 0:00:12]} 45. Qh6+ {[%emt 0:01:47]} Kg8 {[%emt 0:00:13]} 46. Qg5+ {[%emt 0:00:11]} Kf8 {[%emt 0:00:02]} 47. Qh6+ {[%emt 0:06:11]} 1/2-1/2

[Event "European Womens-ch 2025"]
[Site "Rhodes"]
[Date "2025.04.03"]
[Round "4.10"]
[White "Zherebtsova, Alexandra"]
[Black "Savina, Anastasia"]
[Result "1-0"]
[Annotator "RC"]
[ECO "A41"]
[WhiteElo "2229"]
[BlackElo "2331"]
[PlyCount "53"]
[EventDate "2025.03.29"]
[EventType "swiss"]
[EventCountry "GRE"]
[SourceTitle "playchess.com"]
[Source "ChessBase"]
[SourceQuality "1"]
[TimeControl "40/5400+30:1800+30"]

1. d4 {[%emt 0:02:27]} d6 {[%emt 0:02:10]} 2. c4 {[%emt 0:00:29]} e5 {[%emt 0:00:15]} 3. d5 {[%emt 0:01:03]} e4 {[%emt 0:00:36]} 4. Nc3 {[%emt 0:05:23]} f5 {[%emt 0:00:10]} 5. Nh3 {[%emt 0:11:36]} Nd7 {[%emt 0:06:50]} 6. Qa4 {[%emt 0:05:26]} Ngf6 {[%emt 0:50:23]} 7. Ng5 {[%emt 0:06:47]} Ke7 {[%emt 0:01:44]} 8. Qc2 {[%emt 0:25:20]} Ne5 {[%emt 0:02:41]} 9. Nb5 {[%emt 0:05:15]} h6 {[%emt 0:10:24]} 10. Ne6 {[%emt 0:03:53]} Bxe6 {[%emt 0:00:04]} 11. dxe6 {[%emt 0:00:04]} c5 {[%emt 0:05:09]} 12. Bf4 {[%emt 0:03:16]} Kxe6 {[%emt 0:00:36]} 13. O-O-O {[%emt 0:01:56]} Qa5 {[%emt 0:00:36]} 14. g4 {[%emt 0:08:15]} Nfxg4 {[%emt 0:02:55]} 15. Bh3 {[%emt 0:02:11]} h5 {[%emt 0:11:46]} 16. Rd5 {[%emt 0:05:33]} Be7 {[%emt 0:01:25]} 17. Nd4+ {[%emt 0:02:58]} Kf6 {[%emt 0:00:37]} 18. Nxf5 {[%emt 0:00:39]} Qxa2 {[%emt 0:00:36]} 19. Nxd6 {[%emt 0:02:52]} Qa1+ {[%emt 0:00:27]} 20. Qb1 {[%emt 0:02:34]} Qxb1+ {[%emt 0:00:03]} 21. Kxb1 {[%emt 0:00:04]} Bxd6 {[%emt 0:01:01]} 22. Rxd6+ {[%emt 0:00:06]} Ke7 {[%emt 0:00:29]} 23. Bxe5 {[%emt 0:00:28]} Nxf2 {[%emt 0:00:32]} 24. Rd7+ {[%emt 0:01:49]} Ke8 {[%emt 0:00:13]} 25. Rg1 {[%emt 0:00:56]} Nxh3 {[%emt 0:00:47]} 26. Rgxg7 {[%emt 0:00:07]} Rh6 {[%emt 0:00:30]} 27. Rge7+ {[%emt 0:00:09]} 1-0

[Event "European Womens-ch 2025"]
[Site "Rhodes"]
[Date "2025.04.03"]
[Round "4.11"]
[White "Ibrahimova, Sabina"]
[Black "Arabidze, Meri"]
[Result "0-1"]
[Annotator "RC"]
[ECO "D36"]
[WhiteElo "2199"]
[BlackElo "2447"]
[PlyCount "96"]
[EventDate "2025.03.29"]
[EventType "swiss"]
[EventCountry "GRE"]
[SourceTitle "playchess.com"]
[Source "ChessBase"]
[SourceQuality "1"]
[TimeControl "40/5400+30:1800+30"]

1. c4 {[%emt 0:04:18]} e6 {[%emt 0:00:15]} 2. Nc3 {[%emt 0:00:21]} d5 {[%emt 0:00:07]} 3. d4 {[%emt 0:00:16]} Nf6 {[%emt 0:00:06]} 4. cxd5 {[%emt 0:00:21]} exd5 {[%emt 0:00:02]} 5. Bg5 {[%emt 0:00:16]} Be7 {[%emt 0:00:11]} 6. e3 {[%emt 0:00:31]} c6 {[%emt 0:00:16]} 7. Bd3 {[%emt 0:00:30]} Nbd7 {[%emt 0:00:24]} 8. Nge2 {[%emt 0:02:26]} O-O {[%emt 0:00:54]} 9. Qc2 {[%emt 0:01:47]} Re8 {[%emt 0:01:52]} 10. O-O {[%emt 0:03:14]} Nf8 {[%emt 0:03:48]} 11. a4 {[%emt 0:05:34]} a5 {[%emt 0:02:02]} 12. h3 {[%emt 0:06:09]} Nh5 {[%emt 0:08:34]} 13. Bxe7 {[%emt 0:04:07]} Qxe7 {[%emt 0:00:09]} 14. Nb1 {[%emt 0:10:00]} Ng6 {[%emt 0:18:35]} 15. Nd2 {[%emt 0:02:25]} Nh4 {[%emt 0:04:21]} 16. Kh2 {[%emt 0:03:37]} Qd6+ {[%emt 0:02:56]} 17. Kh1 {[%emt 0:07:54]} Qh6 {[%emt 0:00:10]} 18. Rg1 {[%emt 0:03:56]} Nf6 {[%emt 0:02:40]} 19. Ng3 {[%emt 0:04:26]} Qg5 {[%emt 0:06:36]} 20. e4 {[%emt 0:03:29]} dxe4 {[%emt 0:04:36]} 21. Ndxe4 {[%emt 0:03:37]} Nxe4 {[%emt 0:00:17]} 22. Bxe4 {[%emt 0:03:04]} f5 {[%emt 0:06:59]} 23. Bd3 {[%emt 0:04:20]} Be6 {[%emt 0:01:32]} 24. Bc4 {[%emt 0:04:51]} f4 {[%emt 0:09:22]} 25. Rae1 {[%emt 0:04:06]} Bd5 {[%emt 0:02:34]} 26. Ne4 {[%emt 0:03:05]} Qf5 {[%emt 0:01:51]} 27. Bd3 {[%emt 0:04:05]} Nf3 {[%emt 0:14:23]} 28. Nf6+ {[%emt 0:01:09]} Qxf6 {[%emt 0:00:17]} 29. Bxh7+ {[%emt 0:00:36]} Kh8 {[%emt 0:00:12]} 30. gxf3 {[%emt 0:00:56]} Bxf3+ {[%emt 0:03:40]} 31. Kh2 {[%emt 0:00:03]} Qxd4 {[%emt 0:01:05]} 32. Bg6 {[%emt 0:02:41]} Re5 {[%emt 0:01:38]} 33. Rxe5 {[%emt 0:02:18]} Qxe5 {[%emt 0:00:01]} 34. Qd3 {[%emt 0:01:45]} Bd5 {[%emt 0:01:17]} 35. Rg4 {[%emt 0:02:11]} f3+ {[%emt 0:01:17]} 36. Rg3 {[%emt 0:01:37]} Rf8 {[%emt 0:01:23]} 37. Qd2 {[%emt 0:00:52]} Rf6 {[%emt 0:01:06]} 38. Kg1 {[%emt 0:01:19]} Re6 {[%emt 0:01:14]} 39. Qxa5 {[%emt 0:01:08]} Qe1+ {[%emt 0:00:25]} 40. Qxe1 {[%emt 0:00:00]} Rxe1+ {[%emt 0:00:00]} 41. Kh2 {[%emt 0:00:15]} Rf1 {[%emt 0:02:44]} 42. b3 {[%emt 0:21:12]} b6 {[%emt 0:17:28]} 43. b4 {[%emt 0:08:43]} Rxf2+ {[%emt 0:03:10]} 44. Kg1 {[%emt 0:00:04]} Ra2 {[%emt 0:00:15]} 45. b5 {[%emt 0:01:19]} cxb5 {[%emt 0:03:20]} 46. axb5 {[%emt 0:00:06]} f2+ {[%emt 0:00:32]} 47. Kf1 {[%emt 0:00:26]} Bc4+ {[%emt 0:00:04]} 48. Bd3 {[%emt 0:00:32]} Ra3 {[%emt 0:00:05]} 0-1

[Event "European Womens-ch 2025"]
[Site "Rhodes"]
[Date "2025.04.03"]
[Round "4.12"]
[White "Mkrtchyan, Mariam"]
[Black "Injac, Teodora"]
[Result "0-1"]
[Annotator "TA"]
[ECO "B30"]
[WhiteElo "2282"]
[BlackElo "2454"]
[PlyCount "70"]
[EventDate "2025.03.29"]
[EventType "swiss"]
[EventCountry "GRE"]
[SourceTitle "playchess.com"]
[Source "ChessBase"]
[SourceQuality "1"]
[TimeControl "40/5400+30:1800+30"]

{[%evp 9,70,-2,20,0,4,-12,-8,-18,-16,-6,-6,-10,0,0,0,-39,-24,-40,-24,-43,-47,-35,-42,-46,-55,-56,-50,-64,-42,-54,-41,-54,-58,-85,-64,-87,-80,-89,-81,-72,-73,-152,-105,-102,-89,-126,-126,-145,-128,-152,-148,-249,-249,-249,-264,-272,-241,-559,-557,-690,-693,-655,-622]} 1. e4 {[%emt 0:00:02]} c5 {[%emt 0:05:10]} 2. Nf3 {[%emt 0:00:25]} Nc6 {[%emt 0:00:18]} 3. Bb5 {[%emt 0:00:18]} e6 {[%emt 0:00:35]} 4. Bxc6 {[%emt 0:00:13]} bxc6 {[%emt 0:00:04]} 5. d3 {[%emt 0:00:04]} Qc7 {[%emt 0:03:10]} 6. e5 {[%emt 0:02:07] B30: Sicilian: 2...Nc6 3 Bb5, lines without ...g6.} f6 {[%emt 0:05:45]} 7. Bf4 {[%emt 0:00:12]} Ne7 {[%emt 0:03:41]} 8. Qe2 {[%emt 0:00:32] The position is equal.} fxe5 $146 {[%emt 0:02:14]} (8... Nf5 9. h4 fxe5 10. Nxe5 d6 11. Nc4 Be7 12. Nc3 O-O 13. O-O-O e5 14. Bg5 Nd4 {0-1 Skliarov,V (2387)-Migot,T (2353) Titled Tuesday intern op 10th May Early blitz 2022 (5)}) 9. Qxe5 {[%emt 0:16:00]} Qxe5+ {[%emt 0:05:59]} 10. Nxe5 {[%emt 0:01:57]} Nf5 {[%emt 0:11:18]} 11. Nc4 {[%emt 0:08:22]} d6 {[%emt 0:03:45]} 12. Nba3 {[%emt 0:02:11]} e5 {[%emt 0:01:18]} 13. Bd2 {[%emt 0:00:18]} Be7 {[%emt 0:12:28]} 14. f4 {[%emt 0:01:16]} exf4 {[%emt 0:03:19]} 15. Bxf4 {[%emt 0:00:05]} g5 {[%emt 0:00:40]} 16. Bd2 {[%emt 0:01:03]} Be6 {[%emt 0:00:23]} 17. O-O {[%emt 0:02:20][%cal Od2g5]} Kd7 {[%emt 0:00:28]} 18. c3 {[%emt 0:00:52]} h5 {[%emt 0:05:50]} 19. Nc2 {[%emt 0:05:59]} h4 {[%emt 0:03:15]} 20. N4e3 {[%emt 0:00:04]} Raf8 {[%emt 0:02:20]} 21. d4 {[%emt 0:10:27]} cxd4 {[%emt 0:05:07]} 22. Nxd4 {[%emt 0:01:30]} Nxd4 {[%emt 0:03:01]} 23. cxd4 {[%emt 0:00:01]} g4 {[%emt 0:05:16]} 24. b3 {[%emt 0:12:16]} Bf6 {[%emt 0:00:58]} 25. Nc2 {[%emt 0:02:28] [#]} (25. Rf4 $142) 25... Bg7 {[%emt 0:01:01] This pair of bishops is nice.} (25... g3 $142 $1 {Hoping for ...h3.} 26. h3 Bg7) 26. Bc3 $17 {[%emt 0:04:54]} h3 {[%emt 0:05:04] Black is more active.} 27. Rxf8 {[%emt 0:05:43]} Rxf8 {[%emt 0:00:11]} (27... Bxf8 $2 {too greedy.} 28. d5 Rh6 29. dxe6+ $18) 28. Rf1 {[%emt 0:00:30] [#]} Rxf1+ $1 {[%emt 0:03:13]} 29. Kxf1 {[%emt 0:00:04][%mdl 4096] Endgame KBB-KBN} Bh6 {[%emt 0:02:11]} 30. g3 {[%emt 0:08:38]} (30. gxh3 $17 gxh3 31. Ne1) 30... Bf5 $19 {[%emt 0:00:10]} 31. Ne1 {[%emt 0:06:06]} Bb1 {[%emt 0:03:47]} 32. a3 {[%emt 0:02:18]} Ba2 {[%emt 0:00:55]} 33. b4 $2 {[%emt 0:00:48]} (33. Nd3) 33... Ke6 {[%emt 0:00:25] Black is clearly winning.} 34. b5 {[%emt 0:04:31]} cxb5 {[%emt 0:00:36]} 35. Nc2 {[%emt 0:00:06]} Kf5 {[%emt 0:00:27] Weighted Error Value: White=0.31/Black=0.06 (flawless)   Mistake:       	White=3     	Black=1      Inaccurate:     	White=3     	---        OK:         	White=8     	Black=15     Best:        	---       	Black=2      Strong:       	---       	Black=1} 0-1

[Event "European Womens-ch 2025"]
[Site "Rhodes"]
[Date "2025.04.03"]
[Round "4.13"]
[White "Tsolakidou, Stavroula"]
[Black "Allahverdiyeva, Ayan"]
[Result "1-0"]
[Annotator "RC"]
[ECO "E20"]
[WhiteElo "2445"]
[BlackElo "2266"]
[PlyCount "73"]
[EventDate "2025.03.29"]
[EventType "swiss"]
[EventCountry "GRE"]
[SourceTitle "playchess.com"]
[Source "ChessBase"]
[SourceQuality "1"]
[TimeControl "40/5400+30:1800+30"]

1. d4 {[%emt 0:00:22]} Nf6 {[%emt 0:00:05]} 2. c4 {[%emt 0:00:16]} e6 {[%emt 0:00:04]} 3. g3 {[%emt 0:00:13]} Bb4+ {[%emt 0:00:29]} 4. Nc3 {[%emt 0:01:11]} d5 {[%emt 0:01:17]} 5. Bg2 {[%emt 0:00:11]} O-O {[%emt 0:00:08]} 6. Nf3 {[%emt 0:00:12]} dxc4 {[%emt 0:00:05]} 7. O-O {[%emt 0:00:10]} Nc6 {[%emt 0:00:05]} 8. Qa4 {[%emt 0:02:39]} Nd5 {[%emt 0:10:59]} 9. Qc2 {[%emt 0:00:42]} Be7 {[%emt 0:04:55]} 10. Rd1 {[%emt 0:00:27]} Rb8 {[%emt 0:02:19]} 11. e4 {[%emt 0:02:04]} Ndb4 {[%emt 0:04:06]} 12. Qe2 {[%emt 0:01:16]} Nd3 {[%emt 0:03:59]} 13. Be3 {[%emt 0:02:53]} b5 {[%emt 0:07:42]} 14. d5 {[%emt 0:06:04]} exd5 {[%emt 0:03:08]} 15. exd5 {[%emt 0:00:36]} Na5 {[%emt 0:02:19]} 16. Nd4 {[%emt 0:09:09]} b4 {[%emt 0:14:35]} 17. Ncb5 {[%emt 0:14:18]} Bc5 {[%emt 0:22:28]} 18. b3 {[%emt 0:18:53]} a6 {[%emt 0:06:10]} 19. bxc4 {[%emt 0:08:33]} axb5 {[%emt 0:00:19]} 20. cxb5 {[%emt 0:08:18]} Ne5 {[%emt 0:01:19]} 21. Ne6 {[%emt 0:14:47]} fxe6 {[%emt 0:00:03]} 22. Bxc5 {[%emt 0:00:06]} Rf5 {[%emt 0:00:07]} 23. dxe6 {[%emt 0:01:26]} Qe8 {[%emt 0:03:00]} 24. e7 {[%emt 0:03:25]} Bb7 {[%emt 0:01:14]} 25. f4 {[%emt 0:02:18]} Nf3+ {[%emt 0:03:19]} 26. Bxf3 {[%emt 0:00:07]} Rxc5 {[%emt 0:01:21]} 27. Bg4 {[%emt 0:01:26]} Kh8 {[%emt 0:02:26]} 28. Bd7 {[%emt 0:00:28]} Qg8 {[%emt 0:04:46]} 29. Rac1 {[%emt 0:01:42]} Rxc1 {[%emt 0:01:30]} 30. Rxc1 {[%emt 0:00:03]} Bd5 {[%emt 0:00:36]} 31. e8=Q {[%emt 0:00:56]} Rxe8 {[%emt 0:00:02]} 32. Qxe8 {[%emt 0:00:25]} Bxa2 {[%emt 0:00:06]} 33. Rxc7 {[%emt 0:00:27]} Qxe8 {[%emt 0:01:02]} 34. Bxe8 {[%emt 0:00:04]} g6 {[%emt 0:00:51]} 35. Ra7 {[%emt 0:00:32]} b3 {[%emt 0:00:08]} 36. Bf7 {[%emt 0:00:09]} Bb1 {[%emt 0:00:51]} 37. Rxa5 {[%emt 0:00:07]} 1-0

[Event "European Womens-ch 2025"]
[Site "Rhodes"]
[Date "2025.04.03"]
[Round "4.14"]
[White "Sieber, Fiona"]
[Black "Wagner, Dinara"]
[Result "1/2-1/2"]
[Annotator "RC"]
[ECO "B52"]
[WhiteElo "2276"]
[BlackElo "2440"]
[PlyCount "56"]
[EventDate "2025.03.29"]
[EventType "swiss"]
[EventCountry "GRE"]
[SourceTitle "playchess.com"]
[Source "ChessBase"]
[SourceQuality "1"]
[TimeControl "40/5400+30:1800+30"]

1. e4 {[%emt 0:00:02]} c5 {[%emt 0:00:13]} 2. Nf3 {[%emt 0:00:05]} d6 {[%emt 0:00:03]} 3. Bb5+ {[%emt 0:00:03]} Bd7 {[%emt 0:00:04]} 4. Bxd7+ {[%emt 0:00:05]} Qxd7 {[%emt 0:00:04]} 5. d4 {[%emt 0:00:05]} cxd4 {[%emt 0:00:21]} 6. Qxd4 {[%emt 0:00:30]} Nc6 {[%emt 0:00:34]} 7. Qd3 {[%emt 0:02:10]} Nf6 {[%emt 0:00:23]} 8. Nc3 {[%emt 0:02:14]} g6 {[%emt 0:00:45]} 9. O-O {[%emt 0:01:08]} Bg7 {[%emt 0:00:43]} 10. h3 {[%emt 0:08:31]} Rc8 {[%emt 0:01:04]} 11. Bg5 {[%emt 0:01:48]} O-O {[%emt 0:01:22]} 12. Rfe1 {[%emt 0:00:49]} Rfe8 {[%emt 0:17:48]} 13. Bxf6 {[%emt 0:13:33]} Bxf6 {[%emt 0:06:26]} 14. e5 {[%emt 0:00:08]} Bg7 {[%emt 0:00:03]} 15. exd6 {[%emt 0:00:17]} exd6 {[%emt 0:20:44]} 16. Rxe8+ {[%emt 0:01:56]} Rxe8 {[%emt 0:01:45]} 17. Rd1 {[%emt 0:00:06]} Rd8 {[%emt 0:03:19]} 18. Nd5 {[%emt 0:07:34]} Ne7 {[%emt 0:03:57]} 19. c3 {[%emt 0:01:12]} Nxd5 {[%emt 0:08:07]} 20. Qxd5 {[%emt 0:00:05]} Qc6 {[%emt 0:00:02]} 21. Qa5 {[%emt 0:04:53]} Ra8 {[%emt 0:01:09]} 22. Qb4 {[%emt 0:13:56]} Rd8 {[%emt 0:01:51]} 23. Qa5 {[%emt 0:00:21]} Ra8 {[%emt 0:00:04]} 24. Qb4 {[%emt 0:00:02]} Rd8 {[%emt 0:00:38]} 25. h4 {[%emt 0:08:09]} h5 {[%emt 0:08:24]} 26. Qa5 {[%emt 0:05:33]} Ra8 {[%emt 0:00:37]} 27. Qb4 {[%emt 0:00:04]} Rd8 {[%emt 0:00:56]} 28. Kh2 {[%emt 0:01:20]} a6 {[%emt 0:02:47]} 1/2-1/2

[Event "European Womens-ch 2025"]
[Site "Rhodes"]
[Date "2025.04.03"]
[Round "4.15"]
[White "Schneider, Jana"]
[Black "Ushenina, Anna"]
[Result "0-1"]
[Annotator "RC"]
[ECO "C41"]
[WhiteElo "2251"]
[BlackElo "2428"]
[PlyCount "100"]
[EventDate "2025.03.29"]
[EventType "swiss"]
[EventCountry "GRE"]
[SourceTitle "playchess.com"]
[Source "ChessBase"]
[SourceQuality "1"]
[TimeControl "40/5400+30:1800+30"]

1. e4 {[%emt 0:00:06]} d6 {[%emt 0:00:14]} 2. d4 {[%emt 0:00:25]} Nf6 {[%emt 0:00:05]} 3. Nc3 {[%emt 0:00:08]} e5 {[%emt 0:00:13]} 4. Nf3 {[%emt 0:00:49]} Nbd7 {[%emt 0:00:05]} 5. Bc4 {[%emt 0:00:38]} Be7 {[%emt 0:00:05]} 6. a4 {[%emt 0:00:39]} O-O {[%emt 0:00:24]} 7. O-O {[%emt 0:00:37]} c6 {[%emt 0:00:21]} 8. Ba2 {[%emt 0:03:58]} h6 {[%emt 0:04:57]} 9. Nh4 {[%emt 0:14:56]} exd4 {[%emt 0:26:31]} 10. Qxd4 {[%emt 0:00:34]} Ne5 {[%emt 0:19:56]} 11. f4 {[%emt 0:08:21]} c5 {[%emt 0:03:29]} 12. Qd2 {[%emt 0:01:50]} Nc6 {[%emt 0:00:14]} 13. Ng6 {[%emt 0:01:00]} Re8 {[%emt 0:04:14]} 14. e5 {[%emt 0:02:18]} Nh7 {[%emt 0:00:53]} 15. Nb5 {[%emt 0:14:13]} Nd4 {[%emt 0:12:43]} 16. Nxe7+ {[%emt 0:08:32]} Rxe7 {[%emt 0:00:01]} 17. Nxd4 {[%emt 0:02:48]} cxd4 {[%emt 0:00:13]} 18. Qxd4 {[%emt 0:00:07]} Bf5 {[%emt 0:00:28]} 19. c3 {[%emt 0:01:47]} dxe5 {[%emt 0:00:38]} 20. fxe5 {[%emt 0:00:36]} Be6 {[%emt 0:00:27]} 21. Bxe6 {[%emt 0:12:41]} Rxe6 {[%emt 0:00:53]} 22. Bf4 {[%emt 0:00:37]} Nf8 {[%emt 0:00:44]} 23. Rad1 {[%emt 0:01:37]} Qa5 {[%emt 0:03:03]} 24. Bg3 {[%emt 0:02:17]} Rae8 {[%emt 0:01:18]} 25. b4 {[%emt 0:01:41]} Qxa4 {[%emt 0:01:08]} 26. Ra1 {[%emt 0:00:08]} Qc6 {[%emt 0:00:39]} 27. Rxa7 {[%emt 0:00:51]} R6e7 {[%emt 0:05:17]} 28. Ra5 {[%emt 0:04:33]} Rd7 {[%emt 0:02:44]} 29. b5 {[%emt 0:03:20]} Qg6 {[%emt 0:03:45]} 30. Qf2 {[%emt 0:00:33]} Rc8 {[%emt 0:03:49]} 31. Ra3 {[%emt 0:01:55]} Qd3 {[%emt 0:00:23]} 32. Qb6 {[%emt 0:04:30]} Ne6 {[%emt 0:03:02]} 33. Ra7 {[%emt 0:02:26]} Rcc7 {[%emt 0:01:39]} 34. Be1 {[%emt 0:02:14]} Qe4 {[%emt 0:01:35]} 35. Ra8+ {[%emt 0:03:32]} Kh7 {[%emt 0:00:01]} 36. Qf2 {[%emt 0:00:30]} Rc5 {[%emt 0:00:43]} 37. b6 {[%emt 0:00:37]} Rxe5 {[%emt 0:00:42]} 38. Bd2 {[%emt 0:00:29]} Qc2 {[%emt 0:00:44]} 39. Be1 {[%emt 0:00:30]} Re2 {[%emt 0:00:32]} 40. Qf3 {[%emt 0:00:00]} Ng5 {[%emt 0:00:00]} 41. Qg3 {[%emt 0:07:26]} Rde7 {[%emt 0:04:33]} 42. Ra1 {[%emt 0:11:36]} R7e3 {[%emt 0:04:24]} 43. Qg4 {[%emt 0:00:46]} f5 {[%emt 0:02:35]} 44. Qxf5+ {[%emt 0:02:28]} Qxf5 {[%emt 0:00:05]} 45. Rxf5 {[%emt 0:00:05]} Rxe1+ {[%emt 0:00:02]} 46. Rxe1 {[%emt 0:00:16]} Rxe1+ {[%emt 0:00:01]} 47. Kf2 {[%emt 0:00:16]} Rb1 {[%emt 0:00:03]} 48. h4 {[%emt 0:00:29]} Ne4+ {[%emt 0:01:12]} 49. Ke3 {[%emt 0:00:10]} Nxc3 {[%emt 0:00:02]} 50. Kd4 {[%emt 0:01:00]} Na4 {[%emt 0:00:13]} 0-1